bitfinex-derivatives/quotes_BTCF0:USTF0_20250716
["timestamp","ask_amount","ask_price","bid_price","bid_amount"]
[1752691406545,0.76242178,119680.0,119670.0,0.167218]
[1752691406751,0.243564,119680.0,119670.0,0.0002]
[1752691406952,0.59530178,119680.0,119670.0,0.0002]
[1752691407252,0.61157666,119680.0,119670.0,0.167218]
[1752691408053,0.25983888,119680.0,119670.0,0.167218]
[1752691408352,0.04655091,119720.0,119710.0,0.1898722]
[1752691408553,4e-05,119730.0,119720.0,0.2456482]
[1752691408554,0.03373,119730.0,119720.0,0.2456482]
[1752691408752,0.0499941,119730.0,119720.0,0.60198598]
[1752691409650,0.0163041,119730.0,119720.0,0.60198598]
[1752691409851,4e-05,119730.0,119720.0,0.60198598]
[1752691410653,0.023,119730.0,119720.0,0.60198598]
[1752691411056,0.023,119730.0,119720.0,0.67056829]
[1752691411351,0.023,119730.0,119720.0,0.71505875]
[1752691411557,0.24796201,119730.0,119720.0,0.71505875]
[1752691412158,0.25264201,119730.0,119720.0,0.71504014]
[1752691413057,0.19816081,119730.0,119720.0,0.71504014]
[1752691414460,0.22580081,119730.0,119720.0,0.71504014]
[1752691415659,0.22817081,119730.0,119720.0,0.71504014]
[1752691416863,0.22817081,119730.0,119720.0,0.67056829]
[1752691417259,0.22817081,119730.0,119720.0,0.30304754]
[1752691417452,0.22817081,119730.0,119720.0,0.71494622]
[1752691419566,0.19816081,119730.0,119720.0,0.71494622]
[1752691420558,0.29832494,119760.0,119750.0,0.1669065]
[1752691420761,0.67093,119780.0,119770.0,0.1822886]
[1752691420963,1.08871,119780.0,119770.0,0.65513728]
[1752691421464,0.63252,119780.0,119770.0,0.65513728]
[1752691421663,1e-07,119780.0,119770.0,0.65513728]
[1752691421866,0.6324001,119780.0,119770.0,0.65513728]
[1752691422065,0.6324001,119780.0,119770.0,2.15513728]
[1752691422566,1e-07,119780.0,119770.0,2.15513728]
[1752691422865,1e-07,119780.0,119770.0,2.10926728]
[1752691423067,0.6848601,119780.0,119770.0,2.10926728]
[1752691423262,0.6848601,119780.0,119770.0,2.15513728]
[1752691423457,0.6848201,119780.0,119770.0,2.15513728]
[1752691423661,0.6622901,119780.0,119770.0,2.22246576]
[1752691423863,1.1363901,119780.0,119770.0,1.81056708]
[1752691424164,1.36135211,119780.0,119770.0,1.81056708]
[1752691425165,0.22496211,119780.0,119770.0,2.22246576]
[1752691425565,0.27909211,119780.0,119770.0,2.22246576]
[1752691426166,0.28142211,119780.0,119770.0,1.81056708]
[1752691426474,0.73022211,119780.0,119770.0,1.81056708]
[1752691426971,1.36222211,119780.0,119770.0,1.81056708]
[1752691427869,0.73022211,119780.0,119770.0,2.22246576]
[1752691428061,1.36210211,119780.0,119770.0,2.22246576]
[1752691428263,1.36210211,119780.0,119770.0,1.81056708]
[1752691428960,1.36202211,119780.0,119770.0,1.81056708]
[1752691440977,1.36110211,119780.0,119770.0,2.19128905]
[1752691442276,1.36110211,119780.0,119770.0,2.2211212]
[1752691442673,1.36110211,119780.0,119770.0,1.86988323]
[1752691442875,1.36110211,119780.0,119770.0,2.2211212]
[1752691443182,1.36110211,119780.0,119770.0,2.16180505]
[1752691446674,0.73022211,119780.0,119770.0,1.81056708]
[1752691446879,1.87860468,119780.0,119770.0,0.04444445]
[1752691447078,1.87860468,119780.0,119770.0,0.07408234]
[1752691447782,0.1842585,119770.0,119760.0,0.208603]
[1752691447980,0.96429413,119770.0,119760.0,0.2503256]
[1752691448182,0.96429413,119770.0,119760.0,0.2505256]
[1752691448377,1.59445413,119770.0,119760.0,0.2505256]
[1752691448975,0.44143766,119770.0,119760.0,0.3341956]
[1752691449178,0.38308766,119770.0,119760.0,0.74593943]
[1752691449479,1.01316766,119770.0,119760.0,0.74593943]
[1752691449679,1.03816766,119770.0,119760.0,0.74593943]
[1752691450272,1.26312967,119770.0,119760.0,0.74593943]
[1752691451079,0.27435201,119770.0,119760.0,0.74593943]
[1752691451283,0.90431201,119770.0,119760.0,0.74593943]
[1752691453080,0.90431201,119770.0,119760.0,0.80525558]
[1752691453789,0.27435201,119770.0,119760.0,0.80525558]
[1752691454084,0.90411201,119770.0,119760.0,0.80525558]
[1752691455077,0.22496201,119770.0,119760.0,0.80525558]
[1752691455875,0.27206201,119770.0,119760.0,0.80525558]
[1752691457485,0.66444967,119770.0,119760.0,0.3341956]
[1752691457687,1.29862967,119770.0,119760.0,0.2886456]
[1752691457885,1.46550817,119770.0,119760.0,0.30505372]
[1752691458590,1.29862967,119770.0,119760.0,0.30505372]
[1752691462498,0.66914967,119770.0,119760.0,0.30505372]
[1752691462890,1.29818967,119770.0,119760.0,0.30505372]
[1752691465094,1.46506817,119770.0,119760.0,0.30505372]
[1752691465789,1.46506817,119770.0,119760.0,0.33338987]
[1752691467203,1.46606817,119770.0,119760.0,0.33338987]
[1752691470707,1.29918967,119770.0,119760.0,0.33338987]
[1752691472512,1.29842967,119770.0,119760.0,0.36386987]
[1752691473009,1.29842967,119770.0,119760.0,0.71521482]
[1752691474302,1.46530817,119770.0,119760.0,0.71521482]
[1752691474608,1.46530817,119770.0,119760.0,0.36386987]
[1752691474810,1.46530817,119770.0,119760.0,0.71521482]
[1752691475809,1.46530817,119770.0,119760.0,0.36386987]
[1752691477916,1.29842967,119770.0,119760.0,0.36386987]
[1752691478416,0.67014967,119770.0,119760.0,0.71521482]
[1752691478618,1.29802967,119770.0,119760.0,0.71521482]
[1752691479716,1.29316967,119770.0,119760.0,0.76279482]
[1752691479918,1.24316967,119770.0,119760.0,0.76279482]
[1752691480113,0.88431201,119770.0,119760.0,0.76279482]
[1752691480813,0.88331201,119770.0,119760.0,0.76279482]
[1752691481718,0.88331201,119770.0,119760.0,0.70347867]
[1752691482120,0.88331201,119770.0,119760.0,0.76285221]
[1752691482418,0.88331201,119770.0,119760.0,0.70347867]
[1752691482819,0.25342201,119770.0,119760.0,0.70347867]
[1752691483014,0.84946201,119770.0,119760.0,1.05482362]
[1752691484015,0.84946201,119770.0,119760.0,0.77775781]
[1752691484710,0.86485201,119770.0,119760.0,0.77775781]
[1752691484916,0.88065201,119770.0,119760.0,0.77775781]
[1752691486423,0.17496201,119770.0,119760.0,0.77775781]
[1752691486625,0.22221201,119770.0,119760.0,0.77875781]
[1752691489627,0.23750201,119770.0,119760.0,0.77875781]
[1752691490326,0.17496201,119770.0,119760.0,1.13010276]
[1752691490626,0.17496201,119770.0,119760.0,1.11518341]
[1752691493029,0.15153231,119770.0,119760.0,1.11518341]
[1752691493227,0.0474501,119780.0,119760.0,0.96322196]
[1752691493426,0.43723776,119780.0,119770.0,0.663294]
[1752691496625,0.66219977,119780.0,119770.0,0.663294]
[1752691499036,0.22516201,119780.0,119770.0,1.289214]
[1752691499235,0.20420881,119780.0,119770.0,1.289214]
[1752691499526,0.00012,119790.0,119780.0,0.1668646]
[1752691499727,0.00012,119790.0,119780.0,0.66327313]
[1752691500630,0.01541,119790.0,119780.0,0.66327313]
[1752691501028,0.03896,119790.0,119780.0,0.66327313]
[1752691501638,0.03896,119790.0,119780.0,0.60391955]
[1752691501933,0.03896,119790.0,119780.0,0.66326235]
[1752691502135,0.03896,119790.0,119780.0,0.3119174]
[1752691502435,0.00012,119790.0,119780.0,0.66326235]
[1752691502629,0.07846,119790.0,119780.0,0.66326235]
[1752691502830,0.30442201,119790.0,119780.0,0.66326235]
[1752691503029,0.30442201,119790.0,119780.0,0.3119174]
[1752691503334,0.30442201,119790.0,119780.0,0.66326235]
[1752691503636,0.22608201,119790.0,119780.0,0.73752519]
[1752691503930,0.22608201,119790.0,119780.0,0.95784605]
[1752691504335,0.22608201,119790.0,119780.0,0.97279869]
[1752691504734,0.22608201,119790.0,119780.0,1.06548755]
[1752691505537,0.04277102,119790.0,119780.0,1.06548755]
[1752691505838,0.00426772,119790.0,119780.0,1.06548755]
[1752691506039,2e-08,119790.0,119780.0,1.12480104]
[1752691506342,0.00512,119800.0,119790.0,0.2291407]
[1752691506530,0.00012,119810.0,119800.0,0.2453568]
[1752691506837,0.00012,119810.0,119800.0,1.12325336]
[1752691507031,0.00012,119810.0,119800.0,1.10404109]
[1752691507237,0.00012,119810.0,119800.0,1.11608109]
[1752691507535,0.00012,119810.0,119800.0,1.05677336]
[1752691508033,0.02367,119810.0,119800.0,1.05677336]
[1752691508829,0.02367,119810.0,119800.0,2.55677336]
[1752691509027,0.00012,119810.0,119800.0,2.55677336]
[1752691509236,0.00012,119810.0,119800.0,2.56430336]
[1752691509537,0.22508201,119810.0,119800.0,2.56430336]
[1752691509839,0.22808201,119810.0,119800.0,2.56430336]
[1752691511334,0.22808201,119810.0,119800.0,2.63060371]
[1752691511936,0.22808201,119810.0,119800.0,2.68991144]
[1752691512645,0.25163201,119810.0,119800.0,2.68991144]
[1752691512837,0.25163201,119810.0,119800.0,2.98451144]
[1752691513339,0.22808201,119810.0,119800.0,2.98451144]
[1752691514535,0.22808201,119810.0,119800.0,2.28182154]
[1752691514834,0.22808201,119810.0,119800.0,2.98451144]
[1752691515046,1.70246976,119810.0,119800.0,0.21953622]
[1752691515333,0.99758576,119810.0,119800.0,0.17510746]
[1752691515540,1.45480976,119810.0,119800.0,0.17510746]
[1752691515838,0.31248201,119810.0,119800.0,0.17513026]
[1752691516029,1.10362481,119810.0,119800.0,0.17513026]
[1752691516233,1.10362481,119810.0,119800.0,0.21955902]
[1752691516434,1.45496976,119810.0,119800.0,0.21955902]
[1752691516938,1.28806696,119810.0,119800.0,0.17513026]
[1752691517139,0.93672201,119810.0,119800.0,0.21955902]
[1752691517337,0.93672201,119810.0,119800.0,0.58294397]
[1752691517338,0.31268201,119810.0,119800.0,0.58294397]
[1752691517539,0.93668201,119810.0,119800.0,0.58294397]
[1752691517740,0.31268201,119810.0,119800.0,0.58294397]
[1752691517937,0.93664201,119810.0,119800.0,0.58294397]
[1752691518240,0.93660201,119810.0,119800.0,0.23159902]
[1752691518639,0.31268201,119810.0,119800.0,0.23159902]
[1752691518838,0.93656201,119810.0,119800.0,0.58294397]
[1752691519036,0.31268201,119810.0,119800.0,0.58294397]
[1752691519241,0.93652201,119810.0,119800.0,0.59047397]
[1752691519435,0.27905201,119810.0,119800.0,0.59047397]
[1752691519641,0.27905201,119810.0,119800.0,0.54604521]
[1752691519841,0.90281201,119810.0,119800.0,0.54604521]
[1752691520041,0.27905201,119810.0,119800.0,0.54604521]
[1752691520243,0.90281201,119810.0,119800.0,0.54604521]
[1752691520542,0.25112201,119810.0,119800.0,0.60535294]
[1752691520739,0.25112201,119810.0,119800.0,0.5904798]
[1752691520942,0.22828201,119810.0,119800.0,1.06432616]
[1752691521241,0.22828201,119810.0,119800.0,1.12363389]
[1752691521434,0.22828201,119810.0,119800.0,1.06432616]
[1752691522236,0.12168281,119810.0,119800.0,1.12363389]
[1752691522444,1e-08,119810.0,119800.0,1.12363389]
[1752691522646,1e-08,119810.0,119800.0,1.37363389]
[1752691522942,0.0002,119820.0,119810.0,0.1863927]
[1752691523138,0.0002,119820.0,119810.0,0.53773765]
[1752691523441,0.0002,119820.0,119810.0,0.74908334]
[1752691523644,0.0002,119820.0,119810.0,0.70466565]
[1752691523843,1e-07,119820.0,119810.0,1.37244307]
[1752691524040,0.00098414,119830.0,119820.0,0.1668088]
[1752691524342,0.00098414,119830.0,119820.0,0.59857212]
[1752691524742,0.0002,119840.0,119830.0,0.1863649]
[1752691525043,0.0002,119840.0,119830.0,0.58212778]
[1752691525237,0.04597,119840.0,119830.0,0.74902378]
[1752691525432,0.05097,119840.0,119830.0,0.58212778]
[1752691525644,0.0002,119840.0,119830.0,0.74902378]
[1752691525843,0.06851,119840.0,119830.0,0.58212778]
[1752691526140,0.0846,119840.0,119830.0,0.58212778]
[1752691526343,0.06851,119840.0,119830.0,0.58212778]
[1752691526543,0.05335,119840.0,119830.0,0.23078283]
[1752691526738,0.30956201,119840.0,119830.0,0.58212778]
[1752691526934,0.24800201,119840.0,119830.0,0.58212778]
[1752691527642,0.27593201,119840.0,119830.0,0.58212778]
[1752691528144,0.24800201,119840.0,119830.0,1.02059883]
[1752691528339,0.27593201,119840.0,119830.0,1.20504778]
[1752691528537,0.27593201,119840.0,119830.0,0.58212778]
[1752691528940,0.24800201,119840.0,119830.0,0.53770985]
[1752691529143,0.22516201,119840.0,119830.0,0.74902378]
[1752691529337,0.18875261,119840.0,119830.0,1.10036873]
[1752691529537,0.02930031,119840.0,119830.0,0.74902378]
[1752691529850,0.02930031,119840.0,119830.0,1.10036873]
[1752691530345,1e-08,119840.0,119830.0,1.10036873]
[1752691530746,1e-08,119840.0,119830.0,1.11525853]
[1752691530937,1e-08,119840.0,119830.0,1.0559508]
[1752691531140,4e-05,119850.0,119840.0,0.166781]
[1752691531445,0.05095014,119870.0,119860.0,0.1667532]
[1752691531643,4e-08,119870.0,119860.0,0.51809815]
[1752691531842,4e-08,119870.0,119860.0,1.35175747]
[1752691532248,0.03210588,119890.0,119880.0,0.1667253]
[1752691532249,0.05490592,119890.0,119880.0,0.1667253]
[1752691532441,0.05490592,119890.0,119880.0,1.50833577]
[1752691532643,0.02697592,119890.0,119880.0,1.50833577]
[1752691532843,0.00413592,119890.0,119880.0,1.67515977]
[1752691534150,0.00413592,119890.0,119880.0,1.05271977]
[1752691534151,2e-08,119890.0,119880.0,1.05271977]
[1752691534449,4e-08,119890.0,119880.0,1.67503982]
[1752691534645,0.04862783,119920.0,119910.0,0.1666836]
[1752691534838,0.04862783,119920.0,119910.0,0.5180686]
[1752691535040,0.06616783,119920.0,119910.0,1.19948814]
[1752691535252,0.08725783,119920.0,119910.0,1.19948814]
[1752691535440,0.05362783,119920.0,119910.0,1.21633717]
[1752691535644,0.25392753,119920.0,119910.0,0.18357268]
[1752691535843,0.66449202,119920.0,119910.0,0.18357268]
[1752691536153,0.25392753,119920.0,119910.0,0.18357268]
[1752691536447,0.08725783,119920.0,119910.0,0.59413717]
[1752691536747,0.08725783,119920.0,119910.0,1.21609717]
[1752691536950,0.05362783,119920.0,119910.0,1.21609717]
[1752691537153,0.02569783,119920.0,119910.0,1.28248888]
[1752691537544,0.04862783,119920.0,119910.0,1.44927288]
[1752691537745,0.05600783,119920.0,119910.0,1.28244888]
[1752691537945,0.05362783,119920.0,119910.0,1.28244888]
[1752691538142,0.05600783,119920.0,119910.0,1.28244888]
[1752691538454,0.05362783,119920.0,119910.0,1.28244888]
[1752691538947,0.04862783,119920.0,119910.0,1.28244888]
[1752691539145,0.05362783,119920.0,119910.0,1.28244888]
[1752691539348,0.04862783,119920.0,119910.0,1.28244888]
[1752691539555,0.05382783,119920.0,119910.0,1.29088558]
[1752691539756,0.02589783,119920.0,119910.0,1.29088558]
[1752691539946,0.00305783,119920.0,119910.0,1.29088558]
[1752691540253,0.00305783,119920.0,119910.0,1.45766958]
[1752691540748,3e-08,119920.0,119910.0,1.45766958]
[1752691541048,0.02678615,119940.0,119910.0,1.45766958]
[1752691541049,0.00394615,119940.0,119930.0,0.1666559]
[1752691541347,0.08596615,119940.0,119930.0,0.16669595]
[1752691541552,0.08834615,119940.0,119930.0,0.78805595]
[1752691541957,0.05471615,119940.0,119930.0,1.19862044]
[1752691542146,0.08834615,119940.0,119930.0,1.19862044]
[1752691542347,0.05471615,119940.0,119930.0,1.19862044]
[1752691542848,0.02678615,119940.0,119930.0,1.19862044]
[1752691543044,0.05471615,119940.0,119930.0,0.57726044]
[1752691543249,5e-08,119940.0,119930.0,0.82739893]
[1752691543453,0.02088867,119960.0,119950.0,0.1927081]
[1752691543655,0.02088867,119960.0,119950.0,1.24082264]
[1752691544048,0.2391653,119980.0,119970.0,0.1666003]
[1752691544248,0.2045464,119980.0,119970.0,0.80416836]
[1752691544449,0.2045464,119980.0,119970.0,0.19786836]
[1752691544748,0.03796,119980.0,119970.0,0.83016836]
[1752691545142,0.2045464,119980.0,119970.0,0.83016836]
[1752691545354,0.08731,119980.0,119970.0,0.83016836]
[1752691545650,0.2538964,119980.0,119970.0,0.18304836]
[1752691545855,0.2538964,119980.0,119970.0,0.80396836]
[1752691546053,0.2538964,119980.0,119970.0,0.01644806]
[1752691546054,0.66446089,119980.0,119970.0,0.01644806]
[1752691546351,0.91446089,119980.0,119970.0,0.01644806]
[1752691546552,0.2538964,119980.0,119970.0,0.01644806]
[1752691546959,0.2538964,119980.0,119970.0,0.18304836]
[1752691547160,0.2538964,119980.0,119970.0,0.01644806]
[1752691547548,0.1666003,119970.0,119960.0,0.2082646]
[1752691547756,0.2261742,119960.0,119950.0,0.2499294]
[1752691547946,0.2553342,119960.0,119950.0,0.2082732]
[1752691549258,0.2553342,119960.0,119950.0,0.61883769]
[1752691549662,0.2553342,119960.0,119950.0,0.2082732]
[1752691550459,0.2553342,119960.0,119950.0,0.61883769]
[1752691551053,0.2553342,119960.0,119950.0,0.62110769]
[1752691551457,0.2553342,119960.0,119950.0,0.64828769]
[1752691552353,0.08872,119960.0,119950.0,0.64828769]
[1752691552757,0.2553342,119960.0,119950.0,0.64828769]
[1752691555658,0.2553342,119960.0,119950.0,0.2377232]
[1752691555858,0.07296,119960.0,119950.0,0.67376769]
[1752691556057,0.05397,119970.0,119960.0,0.2261142]
[1752691556258,0.03185,119980.0,119970.0,0.1960503]
[1752691556472,0.05639,119980.0,119970.0,0.65555384]
[1752691556761,0.08872,119980.0,119970.0,0.65555384]
[1752691557353,0.08872,119980.0,119970.0,0.64851384]
[1752691557560,0.2553064,119980.0,119970.0,0.64851384]
[1752691557764,0.2555064,119980.0,119970.0,0.64851384]
[1752691557957,0.08892,119980.0,119970.0,0.64851384]
[1752691558767,0.08892,119980.0,119970.0,0.23794935]
[1752691558960,0.08892,119980.0,119970.0,0.71526511]
[1752691559661,1e-07,119980.0,119970.0,0.72230511]
[1752691559853,1e-07,119980.0,119970.0,1.50840911]
[1752691560054,1e-07,119980.0,119970.0,1.34170511]
[1752691560256,1e-07,119980.0,119970.0,2.22230511]
[1752691560459,1e-07,119980.0,119970.0,2.84170511]
[1752691560654,1e-07,119980.0,119970.0,2.22230511]
[1752691560856,1e-07,119980.0,119970.0,2.84166511]
[1752691561060,0.0245401,119980.0,119970.0,2.84166511]
[1752691561557,1e-07,119980.0,119970.0,2.80934511]
[1752691561758,1e-07,119980.0,119970.0,2.18998511]
[1752691561959,0.2482665,119980.0,119970.0,2.18998511]
[1752691562160,0.0887201,119980.0,119970.0,2.18998511]
[1752691563168,0.0887201,119980.0,119970.0,2.21526511]
[1752691563369,0.2553065,119980.0,119970.0,2.21526511]
[1752691563668,0.0887201,119980.0,119970.0,2.21526511]
[1752691563866,0.0887201,119980.0,119970.0,1.80470062]
[1752691564063,0.2553065,119980.0,119970.0,2.21526511]
[1752691564364,0.0887201,119980.0,119970.0,2.21526511]
[1752691566766,0.0563901,119980.0,119970.0,2.22230511]
[1752691566971,1e-07,119980.0,119970.0,2.18998511]
[1752691567471,0.0887201,119980.0,119970.0,2.18998511]
[1752691567872,0.0904248,119980.0,119970.0,2.19098511]
[1752691568069,0.2570112,119980.0,119970.0,2.19098511]
[1752691568371,0.0904248,119980.0,119970.0,1.78242062]
[1752691568570,0.0904248,119980.0,119970.0,2.19298511]
[1752691568768,0.2570112,119980.0,119970.0,2.19298511]
[1752691568969,0.8755712,119980.0,119970.0,2.19298511]
[1752691569170,0.8755712,119980.0,119970.0,1.78242062]
[1752691569572,0.8755712,119980.0,119970.0,1.51961905]
[1752691569769,0.8755712,119980.0,119970.0,1.68621935]
[1752691570278,0.8755712,119980.0,119970.0,1.68421935]
[1752691570775,0.8755712,119980.0,119970.0,1.68321935]
[1752691571368,0.0904248,119980.0,119970.0,2.09378384]
[1752691571574,0.7087048,119980.0,119970.0,2.11449384]
[1752691571780,0.7087048,119980.0,119970.0,2.09378384]
[1752691571981,0.7087048,119980.0,119970.0,2.11449384]
[1752691572184,0.7087048,119980.0,119970.0,2.11906384]
[1752691573279,0.7085848,119980.0,119970.0,2.11906384]
[1752691573484,0.7085448,119980.0,119970.0,2.12610384]
[1752691573886,0.7085448,119980.0,119970.0,2.12710384]
[1752691574788,0.7085448,119980.0,119970.0,2.12006384]
[1752691575388,0.7085448,119980.0,119970.0,2.1856688]
[1752691576486,0.7085448,119980.0,119970.0,2.1927088]
[1752691577484,0.0017048,119980.0,119970.0,2.1927088]
[1752691577680,0.0017048,119980.0,119970.0,2.12710384]
[1752691577880,0.0262148,119980.0,119970.0,2.12710384]
[1752691578686,0.2561312,119980.0,119970.0,1.68421935]
[1752691578887,0.27239191,119980.0,119970.0,1.51761905]
[1752691579081,0.27239191,119980.0,119970.0,1.68421935]
[1752691579489,0.89007191,119980.0,119970.0,1.68621935]
[1752691579788,0.89007181,119980.0,119970.0,1.68621935]
[1752691579988,0.89007181,119980.0,119970.0,1.51961905]
[1752691580184,1.5506763,119980.0,119970.0,0.01961905]
[1752691580381,1.71738031,119980.0,119970.0,0.01961905]
[1752691580590,0.68913582,119980.0,119970.0,0.18621935]
[1752691580785,1.30665582,119980.0,119970.0,0.18621935]
[1752691581089,1.30685582,119980.0,119970.0,0.18621935]
[1752691581890,1.30685582,119980.0,119970.0,0.01661905]
[1752691582285,1.05685582,119980.0,119970.0,0.01661905]
[1752691582593,0.2544403,119970.0,119960.0,0.2501083]
[1752691582889,0.27260571,119970.0,119960.0,0.2499083]
[1752691583389,0.7071047,119970.0,119960.0,0.66047279]
[1752691584293,0.873705,119970.0,119960.0,0.66047279]
[1752691584491,0.88997455,119970.0,119960.0,0.2082549]
[1752691585387,0.89001455,119970.0,119960.0,0.2082549]
[1752691586195,0.873745,119970.0,119960.0,0.2082549]
[1752691587793,0.2003642,119960.0,119950.0,1.7501279]
[1752691587998,0.2563589,119960.0,119950.0,1.7499279]
[1752691588592,0.0897447,119960.0,119950.0,2.16049239]
[1752691588800,0.7067047,119960.0,119950.0,2.23727833]
[1752691589195,0.7067047,119960.0,119950.0,2.23023833]
[1752691589391,0.8733189,119960.0,119950.0,2.20476833]
[1752691589597,0.8733589,119960.0,119950.0,2.16049239]
[1752691589798,0.8733589,119960.0,119950.0,2.16149239]
[1752691590596,0.8733589,119960.0,119950.0,1.7509279]
[1752691590994,0.8733589,119960.0,119950.0,2.10114871]
[1752691591798,0.8733589,119960.0,119950.0,2.14542465]
[1752691592989,0.8733589,119960.0,119950.0,2.10114871]
[1752691594291,0.8733589,119960.0,119950.0,0.60114871]
[1752691594492,0.8733589,119960.0,119950.0,0.55949211]
[1752691594696,0.8733589,119960.0,119950.0,0.56197211]
[1752691594897,0.8733589,119960.0,119950.0,1.7117513]
[1752691595096,0.8733589,119960.0,119950.0,2.06197211]
[1752691596598,0.8733589,119960.0,119950.0,2.10624805]
[1752691597399,0.8733589,119960.0,119950.0,2.06197211]
[1752691598707,0.8733589,119960.0,119950.0,1.7117513]
[1752691599496,0.8733589,119960.0,119950.0,1.50348]
[1752691599802,1.64030772,119960.0,119950.0,0.001]
[1752691600194,1.04008691,119960.0,119950.0,0.001]
[1752691600395,1.39030772,119960.0,119950.0,0.001]
[1752691600696,0.2497781,119950.0,119940.0,7.06562925]
[1752691600902,0.60019891,119950.0,119940.0,7.06542925]
[1752691601094,0.2563728,119950.0,119940.0,7.06542925]
[1752691601295,0.8723728,119950.0,119940.0,7.23207125]
[1752691601494,0.254482,119940.0,119930.0,0.0002]
[1752691601701,0.2544959,119930.0,119920.0,0.04447594]
[1752691601902,0.8706159,119930.0,119920.0,0.04427594]
[1752691602098,0.8723206,119930.0,119920.0,0.04427594]
[1752691602295,0.2498198,119920.0,119910.0,0.06962018]
[1752691602596,0.2545236,119910.0,119900.0,1.54447594]
[1752691602800,0.9385343,119910.0,119900.0,0.05930773]
[1752691602999,0.2498476,119900.0,119890.0,0.01921]
[1752691603299,0.2545515,119890.0,119880.0,7.34258655]
[1752691603501,0.8705515,119890.0,119880.0,6.99216574]
[1752691603692,0.8705515,119890.0,119880.0,7.00057661]
[1752691604090,0.8722562,119890.0,119880.0,7.00057661]
[1752691604298,0.8722562,119890.0,119880.0,7.35079742]
[1752691604703,0.7055447,119890.0,119880.0,7.37250742]
[1752691605002,0.0897447,119890.0,119880.0,7.44518365]
[1752691605298,0.7055847,119890.0,119880.0,7.44518365]
[1752691606193,0.8722962,119890.0,119880.0,7.44518365]
[1752691606400,0.8722962,119890.0,119880.0,7.42973278]
[1752691606602,0.8722962,119890.0,119880.0,7.43373278]
[1752691606795,0.8722962,119890.0,119880.0,7.41202278]
[1752691606995,0.8722962,119890.0,119880.0,6.99616574]
[1752691607198,0.8722962,119890.0,119880.0,7.40704278]
[1752691607503,0.8722962,119890.0,119880.0,7.42875278]
[1752691608003,0.8722962,119890.0,119880.0,7.43373278]
[1752691608402,0.8722962,119890.0,119880.0,8.93373278]
[1752691608606,0.8722962,119890.0,119880.0,8.52285574]
[1752691608805,0.0019047,119890.0,119880.0,8.94077278]
[1752691609103,0.04582,119910.0,119900.0,0.2283476]
[1752691609309,0.8280237,119910.0,119900.0,0.63922464]
[1752691609701,0.66134,119910.0,119900.0,0.63922464]
[1752691609899,0.05296,119920.0,119910.0,0.2233537]
[1752691610206,0.63861,119920.0,119910.0,0.65556983]
[1752691610595,0.02313,119920.0,119910.0,0.65556983]
[1752691610801,0.05063,119930.0,119920.0,0.2283197]
[1752691611000,0.66607,119930.0,119920.0,0.63919674]
[1752691611507,0.8327258,119930.0,119920.0,0.63919674]
[1752691611711,0.66607,119930.0,119920.0,0.63919674]
[1752691611904,0.8327258,119930.0,119920.0,0.63919674]
[1752691612105,0.8327258,119930.0,119920.0,0.64019674]
[1752691612304,0.8327258,119930.0,119920.0,0.2293197]
[1752691612504,0.8350558,119930.0,119920.0,0.64872972]
[1752691613910,0.8350558,119930.0,119920.0,2.14872972]
[1752691614709,0.8673658,119930.0,119920.0,2.13315674]
[1752691615907,0.8673658,119930.0,119920.0,1.7222797]
[1752691616211,0.8673658,119930.0,119920.0,2.13315674]
[1752691616612,0.8673658,119930.0,119920.0,2.14019674]
[1752691617415,0.63801,119930.0,119920.0,2.14019674]
[1752691618611,0.0275,119940.0,119930.0,0.1666558]
[1752691618810,0.66543,119940.0,119930.0,0.63918284]
[1752691619016,0.8320719,119940.0,119930.0,0.63918284]
[1752691619915,0.8667119,119940.0,119930.0,0.63918284]
[1752691620313,0.05296,119940.0,119930.0,0.63918284]
[1752691620515,0.834242,119940.0,119930.0,0.63918284]
[1752691621818,0.866552,119940.0,119930.0,0.63918284]
[1752691622713,0.866552,119940.0,119930.0,0.64018284]
[1752691623310,0.69991,119940.0,119930.0,0.64018284]
[1752691623718,0.8665519,119940.0,119930.0,0.64018284]
[1752691624412,0.8662719,119940.0,119930.0,0.64018284]
[1752691625113,0.02313,119940.0,119930.0,0.64018284]
[1752691625312,1.3698181,119950.0,119940.0,0.228292]
[1752691625513,1.9840581,119950.0,119940.0,0.65575834]
[1752691625713,1.9842581,119950.0,119940.0,0.65575834]
[1752691626220,1.9842581,119950.0,119940.0,0.64871834]
[1752691626620,1.3700181,119950.0,119940.0,0.62392834]
[1752691626921,1.9841381,119950.0,119940.0,0.62392834]
[1752691627121,1.9841381,119950.0,119940.0,0.0351493]
[1752691628121,1.9841381,119950.0,119940.0,0.2017912]
[1752691628522,1.9841381,119950.0,119940.0,0.2130512]
[1752691628924,1.9841381,119950.0,119940.0,0.62392824]
[1752691630021,1.9841381,119950.0,119940.0,0.45728634]
[1752691630324,1.9841381,119950.0,119940.0,0.0464093]
[1752691630719,1.9841381,119950.0,119940.0,0.0165893]
[1752691631622,2.39501514,119950.0,119940.0,0.0165893]
[1752691631921,0.2519397,119920.0,119910.0,0.04431855]
[1752691632115,0.9072918,119920.0,119910.0,0.03499]
[1752691632514,0.9072918,119920.0,119910.0,0.04320559]
[1752691632819,0.9072918,119920.0,119910.0,0.20988919]
[1752691633122,0.9072918,119920.0,119910.0,0.03499]
[1752691633421,0.2936118,119920.0,119910.0,0.21852396]
[1752691633723,0.9071718,119920.0,119910.0,0.652351]
[1752691634119,0.9071718,119920.0,119910.0,0.24147396]
[1752691634314,0.9071718,119920.0,119910.0,0.21852396]
[1752691634822,1.31804884,119920.0,119910.0,0.01685036]
[1752691635320,0.2537975,119900.0,119890.0,0.04431855]
[1752691635526,1.27815454,119900.0,119890.0,0.04431855]
[1752691635824,1.44497055,119900.0,119890.0,0.04431855]
[1752691636020,1.44497055,119900.0,119890.0,0.21102995]
[1752691636221,1.44497055,119900.0,119890.0,0.04431855]
[1752691636521,1.44497055,119900.0,119890.0,0.21102995]
[1752691636824,1.27815454,119900.0,119890.0,0.04431855]
[1752691637025,0.2490114,119890.0,119880.0,6.99215404]
[1752691637223,0.2538114,119890.0,119880.0,6.99215404]
[1752691638822,0.02391,119890.0,119880.0,7.45519108]
[1752691639024,0.63719,119890.0,119880.0,7.49950963]
[1752691639326,0.8670915,119890.0,119880.0,7.45519108]
[1752691639527,0.8670915,119890.0,119880.0,7.04431404]
[1752691639826,0.8670915,119890.0,119880.0,7.04831404]
[1752691640027,0.2538115,119890.0,119880.0,7.05676049]
[1752691640222,0.8670115,119890.0,119880.0,7.05676049]
[1752691640729,0.7003,119890.0,119880.0,7.05676049]
[1752691640928,0.6955,119890.0,119880.0,7.46763753]
[1752691641423,0.8622114,119890.0,119880.0,6.89004679]
[1752691641624,0.8670114,119890.0,119880.0,6.84240679]
[1752691641830,0.8670114,119890.0,119880.0,6.83788679]
[1752691642224,1.27788844,119890.0,119880.0,6.82944034]
[1752691642425,1.27788844,119890.0,119880.0,3e-08]
[1752691642735,0.2538532,119860.0,119850.0,0.06779855]
[1752691642929,0.2538532,119860.0,119850.0,1.52348]